[Event "Titled Tuesday Blitz June 6 Early 2023"]
[White "Levitan, Caleb Levi"]
[Black "Jiganchine, Roman"]
[WhiteFideId "14332620"]
[BlackFideId "2603667"]
[WhiteElo "1963"]
[BlackElo "2300"]
[Result "0-1"]
[Round "11"]
[TimeControl "180+2"]
[Date "2023.06.06"]
[WhiteClock "0:00:03"]
[BlackClock "0:00:16"]
[Board "117"]

1. e4 {[%clk 0:02:58]}  c6 {[%clk 0:02:58]} 2. d4 {[%clk 0:02:57]}  d5 {[%clk 0:02:59]} 3. exd5 {[%clk 0:02:58]}  cxd5 {[%clk 0:02:59]} 4. Bd3 {[%clk 0:02:59]}  Nc6 {[%clk 0:02:58]} 5. c3 {[%clk 0:02:59]}  Nf6 {[%clk 0:02:58]} 6. Bf4 {[%clk 0:02:57]}  Bg4 {[%clk 0:02:57]} 7. Qb3 {[%clk 0:02:56]}  Qc8 {[%clk 0:02:57]} 8. Nd2 {[%clk 0:02:55]}  e6 {[%clk 0:02:57]} 9. Ngf3 {[%clk 0:02:55]}  Be7 {[%clk 0:02:57]} 10. O-O {[%clk 0:02:55]}  O-O {[%clk 0:02:54]} 11. Ne5 {[%clk 0:02:53]}  Nxe5 {[%clk 0:02:53]} 12. Bxe5 {[%clk 0:02:54]}  Bh5 {[%clk 0:02:51]} 13. Rfe1 {[%clk 0:02:49]}  Bg6 {[%clk 0:02:51]} 14. Bxg6 {[%clk 0:02:48]}  hxg6 {[%clk 0:02:52]} 15. Nf3 {[%clk 0:02:48]}  a6 {[%clk 0:02:50]} 16. a4 {[%clk 0:02:46]}  Qc6 {[%clk 0:02:47]} 17. Nd2 {[%clk 0:02:28]}  b5 {[%clk 0:02:46]} 18. axb5 {[%clk 0:02:26]}  Qxb5 {[%clk 0:02:43]} 19. Qxb5 {[%clk 0:02:18]}  axb5 {[%clk 0:02:44]} 20. Bxf6 {[%clk 0:02:11]}  gxf6 {[%clk 0:02:43]} 21. Kf1 {[%clk 0:01:57]}  Rfc8 {[%clk 0:02:42]} 22. Ke2 {[%clk 0:01:51]}  b4 {[%clk 0:02:41]} 23. Kd3 {[%clk 0:01:35]}  f5 {[%clk 0:02:21]} 24. c4 {[%clk 0:01:22]}  dxc4+ {[%clk 0:02:13]} 25. Nxc4 {[%clk 0:01:22]}  Bf6 {[%clk 0:02:11]} 26. f4 {[%clk 0:00:37]}  g5 {[%clk 0:01:46]} 27. g3 {[%clk 0:00:34]}  g4 {[%clk 0:01:45]} 28. Rec1 {[%clk 0:00:23]}  Kg7 {[%clk 0:01:22]} 29. Ne5 {[%clk 0:00:20]}  Rxa1 {[%clk 0:01:00]} 30. Rxa1 {[%clk 0:00:19]}  b3 {[%clk 0:00:58]} 31. Ra3 {[%clk 0:00:14]}  Rc2 {[%clk 0:00:57]} 32. Rxb3 {[%clk 0:00:14]}  Rxh2 {[%clk 0:00:57]} 33. Rb7 {[%clk 0:00:13]}  Bxe5 {[%clk 0:00:54]} 34. dxe5 {[%clk 0:00:12]}  Rg2 {[%clk 0:00:54]} 35. b4 {[%clk 0:00:12]}  Rxg3+ {[%clk 0:00:54]} 36. Ke2 {[%clk 0:00:11]}  Rb3 {[%clk 0:00:53]} 37. b5 {[%clk 0:00:12]}  Rb4 {[%clk 0:00:49]} 38. b6 {[%clk 0:00:10]}  Rxf4 {[%clk 0:00:47]} 39. Rc7 {[%clk 0:00:08]}  Re4+ {[%clk 0:00:45]} 40. Kf2 {[%clk 0:00:08]}  Rxe5 {[%clk 0:00:45]} 41. b7 {[%clk 0:00:05]}  Rb5 {[%clk 0:00:45]} 42. Kg3 {[%clk 0:00:06]}  Rb4 {[%clk 0:00:44]} 43. Kh4 {[%clk 0:00:06]}  Kf6 {[%clk 0:00:42]} 44. Kg3 {[%clk 0:00:05]}  Rb3+ {[%clk 0:00:41]} 45. Kf2 {[%clk 0:00:04]}  f4 {[%clk 0:00:41]} 46. Kg2 {[%clk 0:00:03]}  e5 {[%clk 0:00:41]} 47. Kf2 {[%clk 0:00:02]}  Rb2+ {[%clk 0:00:39]} 48. Kf1 {[%clk 0:00:02]}  g3 {[%clk 0:00:37]} 49. Kg1 {[%clk 0:00:02]}  f3 {[%clk 0:00:33]} 50. Rc6+ {[%clk 0:00:02]}  Kf5 {[%clk 0:00:33]} 51. Rc1 {[%clk 0:00:03]}  Rxb7 {[%clk 0:00:30]} 52. Rf1 {[%clk 0:00:03]}  e4 {[%clk 0:00:29]} 53. Re1 {[%clk 0:00:04]}  f6 {[%clk 0:00:27]} 54. Rd1 {[%clk 0:00:03]}  Kf4 {[%clk 0:00:26]} 55. Rc1 {[%clk 0:00:03]}  Rb4 {[%clk 0:00:26]} 56. Rd1 {[%clk 0:00:03]}  e3 {[%clk 0:00:23]} 57. Rc1 {[%clk 0:00:03]}  e2 {[%clk 0:00:21]} 58. Kh1 {[%clk 0:00:03]}  Re4 {[%clk 0:00:21]} 59. Re1 {[%clk 0:00:02]}  Ke3 {[%clk 0:00:19]} 60. Kg1 {[%clk 0:00:01]}  f2+ {[%clk 0:00:18]} 61. Kg2 {[%clk 0:00:02]}  fxe1=Q {[%clk 0:00:17]} 62. Kh3 {[%clk 0:00:01]}  Qh1+ {[%clk 0:00:16]} 63. Kxg3 {[%clk 0:00:02]}  Qf3+ {[%clk 0:00:16]} 64. Kh2 {[%clk 0:00:02]}  Rh4+ {[%clk 0:00:16]} 65. Kg1 {[%clk 0:00:03]}  Rh1# {[%clk 0:00:16]} 0-1


[Site "https://www.chess.com"]

[Event "Titled Tuesday Blitz June 6 Early 2023"]
[White "Toczek, Grzegorz"]
[Black "KSho99"]
[WhiteFideId "1106457"]
[WhiteElo "2093"]
[BlackElo "2198"]
[Result "1-0"]
[Round "11"]
[TimeControl "180+2"]
[Date "2023.06.06"]
[WhiteClock "0:01:28"]
[BlackClock "0:00:05"]
[Board "119"]

1. c4 {[%clk 0:03:00]}  e5 {[%clk 0:02:56]} 2. e4 {[%clk 0:02:59]}  Nf6 {[%clk 0:02:54]} 3. Nc3 {[%clk 0:02:57]}  Bc5 {[%clk 0:02:49]} 4. h3 {[%clk 0:02:56]}  Nc6 {[%clk 0:02:42]} 5. Nf3 {[%clk 0:02:56]}  d6 {[%clk 0:02:40]} 6. a3 {[%clk 0:02:57]}  a5 {[%clk 0:02:36]} 7. d3 {[%clk 0:02:49]}  h6 {[%clk 0:02:29]} 8. Be3 {[%clk 0:02:49]}  Nd4 {[%clk 0:02:16]} 9. Bxd4 {[%clk 0:02:47]}  Bxd4 {[%clk 0:02:14]} 10. Nxd4 {[%clk 0:02:47]}  exd4 {[%clk 0:02:15]} 11. Ne2 {[%clk 0:02:47]}  c5 {[%clk 0:02:11]} 12. g3 {[%clk 0:02:45]}  a4 {[%clk 0:02:03]} 13. Bg2 {[%clk 0:02:44]}  Qa5+ {[%clk 0:02:00]} 14. Qd2 {[%clk 0:02:40]}  Bd7 {[%clk 0:01:58]} 15. Qxa5 {[%clk 0:02:33]}  Rxa5 {[%clk 0:01:58]} 16. f4 {[%clk 0:02:33]}  b5 {[%clk 0:01:55]} 17. cxb5 {[%clk 0:02:26]}  Rxb5 {[%clk 0:01:48]} 18. O-O-O {[%clk 0:02:25]}  Rb3 {[%clk 0:01:40]} 19. e5 {[%clk 0:02:22]}  dxe5 {[%clk 0:01:38]} 20. fxe5 {[%clk 0:02:22]}  Nh7 {[%clk 0:01:33]} 21. Bd5 {[%clk 0:02:21]}  Rb6 {[%clk 0:01:27]} 22. h4 {[%clk 0:02:11]}  Bg4 {[%clk 0:01:16]} 23. Rd2 {[%clk 0:02:11]}  Nf8 {[%clk 0:01:10]} 24. Nf4 {[%clk 0:02:11]}  Ne6 {[%clk 0:01:07]} 25. Nxe6 {[%clk 0:02:01]}  Bxe6 {[%clk 0:01:04]} 26. Be4 {[%clk 0:01:51]}  Ke7 {[%clk 0:00:53]} 27. Rc2 {[%clk 0:01:51]}  Rc8 {[%clk 0:00:50]} 28. Kb1 {[%clk 0:01:49]}  Rb3 {[%clk 0:00:36]} 29. Rhc1 {[%clk 0:01:48]}  c4 {[%clk 0:00:31]} 30. dxc4 {[%clk 0:01:43]}  Rxg3 {[%clk 0:00:30]} 31. c5 {[%clk 0:01:43]}  Bb3 {[%clk 0:00:24]} 32. Rd2 {[%clk 0:01:38]}  Rc7 {[%clk 0:00:11]} 33. c6 {[%clk 0:01:37]}  Rg4 {[%clk 0:00:09]} 34. Rxd4 {[%clk 0:01:37]}  Rxh4 {[%clk 0:00:09]} 35. Rb4 {[%clk 0:01:28]}  Bd5 {[%clk 0:00:06]} 36. Bxd5 {[%clk 0:01:27]}  Rxb4 {[%clk 0:00:05]} 37. axb4 {[%clk 0:01:28]}  h5 {[%clk 0:00:05]} 38. b5 {[%clk 0:01:28]} 1-0


[Site "https://www.chess.com"]

[Event "Titled Tuesday Blitz June 6 Early 2023"]
[White "campochess"]
[Black "Dwilewicz, Katarzyna"]
[BlackFideId "1148486"]
[WhiteElo "2162"]
[BlackElo "2098"]
[Result "0-1"]
[Round "11"]
[TimeControl "180+2"]
[Date "2023.06.06"]
[WhiteClock "0:01:11"]
[BlackClock "0:00:11"]
[Board "121"]

1. e4 {[%clk 0:03:00]}  c5 {[%clk 0:02:59]} 2. Na3 {[%clk 0:02:58]}  Nc6 {[%clk 0:02:58]} 3. Bb5 {[%clk 0:02:57]}  g6 {[%clk 0:02:55]} 4. c3 {[%clk 0:02:57]}  Bg7 {[%clk 0:02:55]} 5. Nf3 {[%clk 0:02:57]}  a6 {[%clk 0:02:55]} 6. Be2 {[%clk 0:02:56]}  d5 {[%clk 0:02:51]} 7. d3 {[%clk 0:02:55]}  dxe4 {[%clk 0:02:50]} 8. dxe4 {[%clk 0:02:55]}  Qxd1+ {[%clk 0:02:51]} 9. Bxd1 {[%clk 0:02:55]}  b5 {[%clk 0:02:49]} 10. Nc2 {[%clk 0:02:55]}  Bb7 {[%clk 0:02:49]} 11. Be3 {[%clk 0:02:54]}  Nf6 {[%clk 0:02:47]} 12. e5 {[%clk 0:02:49]}  Nd7 {[%clk 0:02:41]} 13. e6 {[%clk 0:02:42]}  fxe6 {[%clk 0:02:41]} 14. Ng5 {[%clk 0:02:42]}  Nd8 {[%clk 0:02:38]} 15. Bg4 {[%clk 0:02:41]}  e5 {[%clk 0:02:32]} 16. O-O-O {[%clk 0:02:37]}  Nf6 {[%clk 0:02:24]} 17. Bf3 {[%clk 0:02:31]}  e4 {[%clk 0:02:24]} 18. Be2 {[%clk 0:02:30]}  Rc8 {[%clk 0:02:21]} 19. Rd2 {[%clk 0:02:19]}  h6 {[%clk 0:02:21]} 20. Nh3 {[%clk 0:02:18]}  Ne6 {[%clk 0:02:15]} 21. Rhd1 {[%clk 0:02:17]}  Kf7 {[%clk 0:02:15]} 22. Nf4 {[%clk 0:02:13]}  Rc6 {[%clk 0:01:33]} 23. Nxe6 {[%clk 0:02:12]}  Kxe6 {[%clk 0:01:33]} 24. Bf4 {[%clk 0:02:12]}  g5 {[%clk 0:01:31]} 25. Bg3 {[%clk 0:02:10]}  Rhc8 {[%clk 0:01:26]} 26. Ne3 {[%clk 0:02:09]}  Rb6 {[%clk 0:01:13]} 27. Kb1 {[%clk 0:02:08]}  Kf7 {[%clk 0:01:04]} 28. Nf5 {[%clk 0:02:03]}  h5 {[%clk 0:00:59]} 29. Nxg7 {[%clk 0:02:02]}  Kxg7 {[%clk 0:00:59]} 30. h4 {[%clk 0:02:00]}  g4 {[%clk 0:00:57]} 31. Be5 {[%clk 0:01:59]}  Kf7 {[%clk 0:00:57]} 32. g3 {[%clk 0:01:46]}  Re6 {[%clk 0:00:50]} 33. Bf4 {[%clk 0:01:45]}  c4 {[%clk 0:00:39]} 34. Rd8 {[%clk 0:01:43]}  Rxd8 {[%clk 0:00:32]} 35. Rxd8 {[%clk 0:01:41]}  Nd5 {[%clk 0:00:32]} 36. Bg5 {[%clk 0:01:38]}  e3 {[%clk 0:00:31]} 37. fxe3 {[%clk 0:01:34]}  Nxe3 {[%clk 0:00:31]} 38. Rd7 {[%clk 0:01:33]}  Bc6 {[%clk 0:00:23]} 39. Rc7 {[%clk 0:01:33]}  Nd5 {[%clk 0:00:21]} 40. Ra7 {[%clk 0:01:28]}  Rxe2 {[%clk 0:00:21]} 41. Rxa6 {[%clk 0:01:28]}  Bd7 {[%clk 0:00:20]} 42. Ra7 {[%clk 0:01:27]}  Bf5+ {[%clk 0:00:21]} 43. Kc1 {[%clk 0:01:26]}  Rg2 {[%clk 0:00:17]} 44. a4 {[%clk 0:01:24]}  Rc2+ {[%clk 0:00:17]} 45. Kd1 {[%clk 0:01:23]}  Rxb2 {[%clk 0:00:17]} 46. axb5 {[%clk 0:01:22]}  Nxc3+ {[%clk 0:00:17]} 47. Ke1 {[%clk 0:01:21]}  Re2+ {[%clk 0:00:15]} 48. Kf1 {[%clk 0:01:21]}  Bd3 {[%clk 0:00:15]} 49. Kg1 {[%clk 0:01:20]}  Re1+ {[%clk 0:00:14]} 50. Kf2 {[%clk 0:01:19]}  Re2+ {[%clk 0:00:14]} 51. Kg1 {[%clk 0:01:19]}  Rb2 {[%clk 0:00:15]} 52. Rd7 {[%clk 0:01:17]}  Rxb5 {[%clk 0:00:14]} 53. Rxe7+ {[%clk 0:01:17]}  Kf8 {[%clk 0:00:14]} 54. Re6 {[%clk 0:01:15]}  Ne4 {[%clk 0:00:14]} 55. Bf4 {[%clk 0:01:14]}  Rb1+ {[%clk 0:00:14]} 56. Kg2 {[%clk 0:01:14]}  Rb2+ {[%clk 0:00:13]} 57. Kg1 {[%clk 0:01:15]}  Re2 {[%clk 0:00:12]} 58. Rh6 {[%clk 0:01:14]}  Re1+ {[%clk 0:00:10]} 59. Kg2 {[%clk 0:01:13]}  Bf1+ {[%clk 0:00:10]} 60. Kg1 {[%clk 0:01:12]}  Be2+ {[%clk 0:00:10]} 61. Kg2 {[%clk 0:01:12]}  Bf3+ {[%clk 0:00:11]} 62. Kh2 {[%clk 0:01:11]}  Rh1# {[%clk 0:00:11]} 0-1


[Site "https://www.chess.com"]

[Event "Titled Tuesday Blitz June 6 Early 2023"]
[White "Quirke, Jeffrey"]
[Black "Chuemsakul, Sarocha"]
[WhiteFideId "2013029"]
[BlackFideId "6203710"]
[WhiteElo "2198"]
[BlackElo "1686"]
[Result "0-1"]
[Round "11"]
[TimeControl "180+2"]
[Date "2023.06.06"]
[WhiteClock "0:00:02"]
[BlackClock "0:00:24"]
[Board "126"]

1. e4 {[%clk 0:02:59]}  g6 {[%clk 0:02:53]} 2. d4 {[%clk 0:02:57]}  Bg7 {[%clk 0:02:52]} 3. c3 {[%clk 0:02:58]}  d6 {[%clk 0:02:50]} 4. Nf3 {[%clk 0:02:56]}  Nf6 {[%clk 0:02:47]} 5. Bd3 {[%clk 0:02:56]}  O-O {[%clk 0:02:46]} 6. O-O {[%clk 0:02:56]}  Nc6 {[%clk 0:02:47]} 7. Re1 {[%clk 0:02:48]}  e5 {[%clk 0:02:47]} 8. d5 {[%clk 0:02:48]}  Ne7 {[%clk 0:02:47]} 9. c4 {[%clk 0:02:49]}  c5 {[%clk 0:02:47]} 10. Nc3 {[%clk 0:02:47]}  Ne8 {[%clk 0:02:44]} 11. g3 {[%clk 0:02:31]}  f5 {[%clk 0:02:44]} 12. exf5 {[%clk 0:02:30]}  gxf5 {[%clk 0:02:44]} 13. Nh4 {[%clk 0:02:29]}  e4 {[%clk 0:02:40]} 14. Bf1 {[%clk 0:02:13]}  Ng6 {[%clk 0:02:41]} 15. Ng2 {[%clk 0:02:02]}  Ne5 {[%clk 0:02:37]} 16. Be2 {[%clk 0:01:55]}  Nf6 {[%clk 0:02:32]} 17. f4 {[%clk 0:01:50]}  Ng6 {[%clk 0:01:40]} 18. Ne3 {[%clk 0:01:41]}  Bd7 {[%clk 0:01:38]} 19. Bd2 {[%clk 0:01:36]}  a6 {[%clk 0:01:35]} 20. a4 {[%clk 0:01:35]}  Qb6 {[%clk 0:01:33]} 21. Qc2 {[%clk 0:01:33]}  Rf7 {[%clk 0:01:28]} 22. h3 {[%clk 0:01:31]}  h5 {[%clk 0:01:27]} 23. Kh2 {[%clk 0:01:31]}  h4 {[%clk 0:01:21]} 24. Rf1 {[%clk 0:00:49]}  hxg3+ {[%clk 0:01:20]} 25. Kxg3 {[%clk 0:00:49]}  Bh6 {[%clk 0:01:21]} 26. Ng2 {[%clk 0:00:45]}  Kh7 {[%clk 0:01:21]} 27. Kh2 {[%clk 0:00:44]}  Rg8 {[%clk 0:01:20]} 28. Rg1 {[%clk 0:00:40]}  Qd8 {[%clk 0:01:16]} 29. Raf1 {[%clk 0:00:38]}  Rfg7 {[%clk 0:01:15]} 30. Be3 {[%clk 0:00:31]}  Qe8 {[%clk 0:01:15]} 31. Qd1 {[%clk 0:00:27]}  Ne7 {[%clk 0:00:56]} 32. b3 {[%clk 0:00:25]}  Rg6 {[%clk 0:00:37]} 33. Qe1 {[%clk 0:00:23]}  R8g7 {[%clk 0:00:36]} 34. Nh4 {[%clk 0:00:18]}  Rxg1 {[%clk 0:00:36]} 35. Rxg1 {[%clk 0:00:17]}  Rxg1 {[%clk 0:00:34]} 36. Qxg1 {[%clk 0:00:18]}  Nh5 {[%clk 0:00:33]} 37. Qf2 {[%clk 0:00:14]}  Qg8 {[%clk 0:00:31]} 38. Bxh5 {[%clk 0:00:12]}  Qg7 {[%clk 0:00:31]} 39. Qg3 {[%clk 0:00:09]}  Qxc3 {[%clk 0:00:29]} 40. Bg6+ {[%clk 0:00:09]}  Kh8 {[%clk 0:00:28]} 41. Bxf5 {[%clk 0:00:04]}  Bxf5 {[%clk 0:00:23]} 42. Nxf5 {[%clk 0:00:02]}  Nxf5 {[%clk 0:00:24]} 0-1


[Site "https://www.chess.com"]

[Event "Titled Tuesday Blitz June 6 Early 2023"]
[White "le-castor-faineant"]
[Black "Skiadopoulos, Nikolaos"]
[BlackFideId "4200772"]
[WhiteElo "2220"]
[BlackElo "2022"]
[Result "1-0"]
[Round "11"]
[TimeControl "180+2"]
[Date "2023.06.06"]
[WhiteClock "0:01:55"]
[BlackClock "0:00:05"]
[Board "127"]

1. e4 {[%clk 0:03:00]}  c5 {[%clk 0:02:58]} 2. Nf3 {[%clk 0:03:00]}  Nc6 {[%clk 0:02:56]} 3. d4 {[%clk 0:03:01]}  cxd4 {[%clk 0:02:56]} 4. Nxd4 {[%clk 0:03:02]}  e5 {[%clk 0:02:56]} 5. Nxc6 {[%clk 0:03:01]}  bxc6 {[%clk 0:02:47]} 6. c4 {[%clk 0:03:01]}  Nf6 {[%clk 0:02:48]} 7. Nc3 {[%clk 0:03:01]}  Bb4 {[%clk 0:02:47]} 8. Bg5 {[%clk 0:02:59]}  Qa5 {[%clk 0:02:45]} 9. Bd2 {[%clk 0:02:57]}  Qb6 {[%clk 0:02:29]} 10. Bd3 {[%clk 0:02:53]}  O-O {[%clk 0:02:21]} 11. O-O {[%clk 0:02:53]}  Be7 {[%clk 0:02:18]} 12. a3 {[%clk 0:02:48]}  d6 {[%clk 0:02:07]} 13. b4 {[%clk 0:02:48]}  Be6 {[%clk 0:02:01]} 14. Na4 {[%clk 0:02:46]}  Qc7 {[%clk 0:01:55]} 15. Rc1 {[%clk 0:02:46]}  Rad8 {[%clk 0:01:49]} 16. Qe2 {[%clk 0:02:44]}  a5 {[%clk 0:01:42]} 17. b5 {[%clk 0:02:42]}  cxb5 {[%clk 0:01:29]} 18. cxb5 {[%clk 0:02:43]}  Qb8 {[%clk 0:01:25]} 19. Bxa5 {[%clk 0:02:39]}  Qa7 {[%clk 0:01:25]} 20. Bxd8 {[%clk 0:02:39]}  Rxd8 {[%clk 0:01:20]} 21. Qd1 {[%clk 0:02:30]}  d5 {[%clk 0:01:16]} 22. b6 {[%clk 0:02:28]}  Qb8 {[%clk 0:01:15]} 23. exd5 {[%clk 0:02:23]}  Nxd5 {[%clk 0:01:13]} 24. Qc2 {[%clk 0:02:17]}  Bxa3 {[%clk 0:01:09]} 25. Bxh7+ {[%clk 0:02:15]}  Kh8 {[%clk 0:01:08]} 26. Rcd1 {[%clk 0:02:12]}  Nxb6 {[%clk 0:00:48]} 27. Nxb6 {[%clk 0:02:09]}  Qxb6 {[%clk 0:00:47]} 28. Rxd8+ {[%clk 0:02:08]}  Qxd8 {[%clk 0:00:47]} 29. Bf5 {[%clk 0:02:05]}  Qf6 {[%clk 0:00:21]} 30. Bxe6 {[%clk 0:02:00]}  Qxe6 {[%clk 0:00:21]} 31. Rd1 {[%clk 0:01:58]}  g6 {[%clk 0:00:14]} 32. h3 {[%clk 0:01:58]}  e4 {[%clk 0:00:11]} 33. Re1 {[%clk 0:01:57]}  Bd6 {[%clk 0:00:10]} 34. Qxe4 {[%clk 0:01:57]}  Qf6 {[%clk 0:00:05]} 35. Qe8+ {[%clk 0:01:56]}  Kg7 {[%clk 0:00:05]} 36. Qe4 {[%clk 0:01:55]} 1-0


[Site "https://www.chess.com"]

[Event "Titled Tuesday Blitz June 6 Early 2023"]
[White "Todorovic, Bojan"]
[Black "Flis, Pawel"]
[WhiteFideId "917087"]
[BlackFideId "1112864"]
[WhiteElo "2266"]
[BlackElo "1822"]
[Result "0-1"]
[Round "11"]
[TimeControl "180+2"]
[Date "2023.06.06"]
[WhiteClock "0:00:01"]
[BlackClock "0:00:07"]
[Board "128"]

1. d4 {[%clk 0:02:59]}  c5 {[%clk 0:03:00]} 2. d5 {[%clk 0:02:58]}  Nf6 {[%clk 0:03:00]} 3. Nc3 {[%clk 0:02:54]}  e6 {[%clk 0:02:59]} 4. e4 {[%clk 0:02:52]}  d6 {[%clk 0:02:59]} 5. Bb5+ {[%clk 0:02:49]}  Bd7 {[%clk 0:02:59]} 6. a4 {[%clk 0:02:47]}  exd5 {[%clk 0:02:57]} 7. exd5 {[%clk 0:02:44]}  Be7 {[%clk 0:02:57]} 8. Nf3 {[%clk 0:02:43]}  O-O {[%clk 0:02:57]} 9. Bxd7 {[%clk 0:02:42]}  Qxd7 {[%clk 0:02:52]} 10. O-O {[%clk 0:02:40]}  Na6 {[%clk 0:02:51]} 11. h3 {[%clk 0:02:37]}  Nb4 {[%clk 0:02:46]} 12. Re1 {[%clk 0:02:30]}  Rfe8 {[%clk 0:02:45]} 13. Bg5 {[%clk 0:02:27]}  Qf5 {[%clk 0:02:42]} 14. g4 {[%clk 0:01:30]}  Qxc2 {[%clk 0:02:27]} 15. Rc1 {[%clk 0:01:04]}  Qxb2 {[%clk 0:01:52]} 16. Re2 {[%clk 0:01:03]}  Qa3 {[%clk 0:01:45]} 17. Qd2 {[%clk 0:00:46]}  Nbxd5 {[%clk 0:01:27]} 18. Nxd5 {[%clk 0:00:44]}  Nxd5 {[%clk 0:01:24]} 19. Qxd5 {[%clk 0:00:44]}  Bxg5 {[%clk 0:01:21]} 20. Rce1 {[%clk 0:00:21]}  Rxe2 {[%clk 0:01:05]} 21. Rxe2 {[%clk 0:00:21]}  Bf6 {[%clk 0:01:00]} 22. g5 {[%clk 0:00:17]}  Bd4 {[%clk 0:00:45]} 23. Re7 {[%clk 0:00:15]}  Rf8 {[%clk 0:00:30]} 24. Nxd4 {[%clk 0:00:15]}  Qa1+ {[%clk 0:00:25]} 25. Kg2 {[%clk 0:00:14]}  Qxd4 {[%clk 0:00:21]} 26. Qxd4 {[%clk 0:00:15]}  cxd4 {[%clk 0:00:21]} 27. Rxb7 {[%clk 0:00:15]}  Rd8 {[%clk 0:00:19]} 28. Rxa7 {[%clk 0:00:14]}  d3 {[%clk 0:00:19]} 29. Kf3 {[%clk 0:00:13]}  d5 {[%clk 0:00:17]} 30. Ke3 {[%clk 0:00:13]}  d4+ {[%clk 0:00:17]} 31. Kxd3 {[%clk 0:00:14]}  g6 {[%clk 0:00:17]} 32. f4 {[%clk 0:00:13]}  Kf8 {[%clk 0:00:16]} 33. Rb7 {[%clk 0:00:12]}  Ra8 {[%clk 0:00:16]} 34. Rb4 {[%clk 0:00:12]}  Ra5 {[%clk 0:00:15]} 35. Rxd4 {[%clk 0:00:12]}  Ke7 {[%clk 0:00:15]} 36. Kc3 {[%clk 0:00:12]}  Ke6 {[%clk 0:00:15]} 37. Kb4 {[%clk 0:00:11]}  Ra8 {[%clk 0:00:15]} 38. a5 {[%clk 0:00:11]}  Kf5 {[%clk 0:00:15]} 39. Ka4 {[%clk 0:00:07]}  f6 {[%clk 0:00:12]} 40. gxf6 {[%clk 0:00:04]}  Kxf6 {[%clk 0:00:13]} 41. Rd5 {[%clk 0:00:03]}  Ke6 {[%clk 0:00:12]} 42. Rb5 {[%clk 0:00:02]}  Kd6 {[%clk 0:00:09]} 43. Kb4 {[%clk 0:00:02]}  Kc6 {[%clk 0:00:08]} 44. Rb6+ {[%clk 0:00:02]}  Kd5 {[%clk 0:00:08]} 45. Kb5 {[%clk 0:00:02]}  Ke4 {[%clk 0:00:08]} 46. a6 {[%clk 0:00:01]}  Kxf4 {[%clk 0:00:07]} 0-1


[Site "https://www.chess.com"]

[Event "Titled Tuesday Blitz June 6 Early 2023"]
[White "Sokolov, Andrei"]
[Black "Lisjak, Zlatko"]
[WhiteFideId "11600306"]
[BlackFideId "14502186"]
[WhiteElo "2473"]
[BlackElo "1998"]
[Result "1/2-1/2"]
[Round "11"]
[TimeControl "180+2"]
[Date "2023.06.06"]
[WhiteClock "0:02:42"]
[BlackClock "0:02:03"]
[Board "132"]

1. e4 {[%clk 0:03:00]}  d6 {[%clk 0:02:59]} 2. d4 {[%clk 0:02:59]}  Nf6 {[%clk 0:03:00]} 3. Nc3 {[%clk 0:02:58]}  c6 {[%clk 0:03:00]} 4. Nf3 {[%clk 0:02:59]}  Bg4 {[%clk 0:02:58]} 5. h3 {[%clk 0:02:58]}  Bh5 {[%clk 0:02:58]} 6. g4 {[%clk 0:02:57]}  Bg6 {[%clk 0:02:56]} 7. Bd3 {[%clk 0:02:57]}  e6 {[%clk 0:02:44]} 8. Bg5 {[%clk 0:02:57]}  Be7 {[%clk 0:02:41]} 9. Qd2 {[%clk 0:02:56]}  d5 {[%clk 0:02:39]} 10. e5 {[%clk 0:02:55]}  Ne4 {[%clk 0:02:35]} 11. Bxe4 {[%clk 0:02:54]}  dxe4 {[%clk 0:02:28]} 12. Bxe7 {[%clk 0:02:51]}  Qxe7 {[%clk 0:02:26]} 13. Nh2 {[%clk 0:02:51]}  Nd7 {[%clk 0:02:21]} 14. O-O-O {[%clk 0:02:46]}  c5 {[%clk 0:02:03]} 15. dxc5 {[%clk 0:02:42]} 1/2-1/2


[Site "https://www.chess.com"]